bitfinex/quotes_ETHUSD_20241215
["timestamp","ask_amount","ask_price","bid_price","bid_amount"]
[1734221897355,0.796,3867.0,3866.1,3.66754057]
[1734221897567,0.796,3867.0,3866.2,2.23747203]
[1734221897770,0.796,3867.0,3866.3,0.89498881]
[1734221897970,0.796,3867.0,3866.1,4.75863586]
[1734221898196,0.796,3867.0,3866.2,2.2375203]
[1734221898366,0.796,3867.0,3866.3,0.89500812]
[1734221898584,0.796,3867.0,3866.4,3.4627574]
[1734221903107,0.796,3867.0,3866.4,0.8764074]
[1734221903308,0.796,3867.0,3866.5,2.58631]
[1734221903471,0.796,3867.4,3866.8,2.58609]
[1734221903671,0.796,3867.4,3866.9,2.586]
[1734221903872,0.92993095,3867.7,3867.1,2.58589]
[1734221907041,0.92993095,3867.7,3866.9,0.31815593]
[1734221907042,0.92993095,3867.7,3867.0,2.58597]
[1734221907248,0.92993095,3867.7,3867.1,2.5859]
[1734221909701,0.92993095,3867.7,3867.3,2.58577]
[1734221910045,0.13393095,3867.7,3867.3,0.55]
[1734221910330,0.13393095,3867.7,3867.5,2.58563]
[1734221910529,0.13393095,3867.7,3867.4,0.22747421]
[1734221911400,0.7979,3867.6,3867.0,2.58596]
[1734221912582,0.7979,3867.6,3867.0,0.55]
[1734221912788,0.13393095,3867.7,3867.2,2.58583]
[1734221913409,0.13393095,3867.7,3867.0,0.55]
[1734221913585,0.7979,3867.6,3867.0,0.55]
[1734221913788,0.7979,3867.6,3867.1,0.40238759]
[1734221915125,0.7979,3867.6,3866.9,0.31815593]
[1734221916325,0.7979,3867.6,3866.4,2.54272009]
[1734221916500,0.7979,3867.6,3866.5,5.78583626]
[1734221916827,0.7979,3867.6,3866.5,3.55]
[1734221917527,0.7979,3867.6,3866.5,0.55]
[1734221917916,0.5116939,3867.4,3866.5,0.55]
[1734221918088,0.7979,3867.3,3866.5,1.17487901]
[1734221921529,0.7979,3867.2,3866.2,1.08097057]
[1734221921729,0.7979,3867.0,3866.0,1.08097057]
[1734221922031,0.7979,3867.0,3866.1,2.23772733]
[1734221922228,0.7979,3867.0,3866.2,0.89509093]
[1734221922430,0.7979,3866.9,3865.9,1.08097057]
[1734221922633,0.7979,3866.9,3865.9,3.31880305]
[1734221923204,1.31226871,3866.9,3866.0,1.15504212]
[1734221923402,1.31226871,3866.9,3866.1,2.23783248]
[1734221923602,0.7979,3866.8,3866.2,0.89513299]
[1734221923796,0.7979,3866.8,3866.0,1.15504212]
[1734221924004,0.7979,3866.8,3866.1,0.89509215]
[1734221924302,1.23445406,3866.8,3865.7,5.23601269]
[1734221924503,0.51436871,3866.9,3865.7,5.23601269]
[1734221924504,0.7992,3866.7,3865.8,2.78814803]
[1734221924732,0.7992,3866.7,3865.9,0.89525921]
[1734221924946,0.7992,3866.7,3865.8,0.55]
[1734221925260,0.7992,3866.7,3865.9,0.89530658]
[1734221925472,0.7992,3866.7,3865.8,0.55]
[1734221926244,0.7992,3866.7,3865.9,0.89525022]
[1734221926858,0.7992,3866.7,3865.8,1.38729227]
[1734221927160,0.7992,3866.7,3865.9,0.89520008]
[1734221929028,0.7992,3866.7,3865.9,0.87505295]
[1734221929645,0.7992,3866.7,3865.8,0.55]
[1734221930370,0.7992,3866.7,3866.0,1.15504212]
[1734221935014,0.7992,3866.7,3865.7,1.15504212]
[1734221935219,0.7992,3866.7,3865.8,0.55]
[1734221936619,0.7992,3866.7,3865.7,0.55]
[1734221937453,3.40836,3866.6,3865.5,1.08097057]
[1734221937654,0.8221,3866.4,3865.5,0.55]
[1734221938864,1.07946732,3866.9,3865.5,0.55]
[1734221938865,0.8221,3866.2,3865.5,0.55]
[1734221940280,0.8221,3866.2,3865.6,3.74195212]
[1734221944292,0.8221,3866.2,3865.7,2.58681]
[1734221944595,0.8221,3866.2,3865.7,3.01599521]
[1734221945193,0.13413914,3866.9,3865.9,1.15504212]
[1734221945194,0.81,3866.8,3865.9,1.15504212]
[1734221945492,0.81,3866.8,3866.0,2.58662]
[1734221945670,0.81,3866.8,3865.9,1.15504212]
[1734221946904,0.81,3866.8,3865.9,3.74174212]
[1734221947092,0.81,3866.8,3865.9,4.51580485]
[1734221947292,0.81,3866.8,3866.0,2.58664]
[1734221947683,0.52819104,3866.7,3866.0,2.58664]
[1734221949096,0.81,3866.8,3866.5,1.15504212]
[1734221949295,0.81,3867.5,3866.6,0.40001022]
[1734221949496,0.81,3867.5,3866.7,2.58617]
[1734221949819,0.81,3867.2,3866.0,4.15504212]
[1734221950020,0.81,3867.2,3866.1,4.44380296]
[1734221950322,0.81,3867.2,3866.3,2.58644]
[1734221950485,0.94152307,3867.2,3866.3,2.58644]
[1734221951088,0.94152307,3867.2,3866.0,6.74164212]
[1734221951303,0.94152307,3867.2,3866.0,3.74164212]
[1734221951686,0.81,3867.1,3865.7,6.74186212]
[1734221951885,0.81,3867.1,3865.8,1.44419938]
[1734221951886,0.81,3867.0,3865.8,1.44419938]
[1734221952103,0.81,3866.8,3865.8,0.55]
[1734221952299,0.81,3866.8,3865.7,3.74186212]
[1734221952599,0.81,3866.8,3865.8,0.89422444]
[1734221952920,0.81,3866.8,3865.7,3.74186212]
[1734221953300,0.81,3866.8,3865.7,1.15504212]
[1734221953611,0.81,3866.6,3865.7,1.15504212]
[1734221953807,0.81,3866.2,3865.7,1.15504212]
[1734221954019,0.81,3866.2,3865.5,0.55]
[1734221954220,0.81,3866.2,3865.6,0.89444475]
[1734221954918,0.81,3866.2,3865.6,3.48134475]
[1734221955119,0.81,3866.2,3865.6,2.5869]
[1734221955830,0.81,3866.2,3865.5,0.55]
[1734221956023,0.81,3866.2,3865.4,4.15504212]
[1734221956024,0.94224519,3866.2,3865.4,4.15504212]
[1734221956349,0.94224519,3866.2,3865.5,0.89463479]
[1734221956575,0.94224519,3866.2,3865.3,3.0]
[1734221956844,0.94224519,3866.2,3865.4,5.23702042]
[1734221957023,0.94224519,3866.2,3865.5,0.89480817]
[1734221957211,0.81,3866.0,3865.3,3.0]
[1734221957417,0.81,3866.0,3865.4,2.23701962]
[1734221957617,0.81,3866.0,3865.4,5.23701962]
[1734221957848,0.81,3866.0,3865.5,0.89480785]
[1734221958057,0.81,3866.0,3865.3,4.08097057]
[1734221958248,0.81,3866.0,3865.4,5.23736643]
[1734221958453,0.81,3866.0,3865.5,0.89494657]
[1734221958945,0.81,3866.0,3865.3,4.08097057]
[1734221958946,0.81,3866.0,3865.4,1.15504212]
[1734221959149,0.81,3866.0,3865.5,2.23780593]
[1734221959312,0.81,3866.0,3865.4,4.42779898]
[1734221959512,0.81,3866.0,3865.5,2.2377764]
[1734221959734,0.81,3866.0,3865.6,0.89511056]
[1734221959914,0.81,3866.0,3865.4,4.42779898]
[1734221960141,0.81,3866.0,3865.5,2.23829373]
[1734221960315,0.81,3866.0,3865.6,0.89531749]
[1734221960515,0.81,3866.0,3865.4,5.50876955]
[1734221960716,0.81,3866.0,3865.5,2.23889243]
[1734221960946,0.81,3866.0,3865.6,2.23889243]
[1734221961249,0.81,3866.0,3865.4,5.50876955]
[1734221961416,0.81,3866.0,3865.5,2.2388923]
[1734221962669,0.81,3866.0,3865.5,3.31986287]
[1734221963029,0.81,3866.0,3865.6,1.34333538]
[1734221963389,0.81,3866.0,3865.7,0.89555692]
[1734221963663,0.81,3866.0,3865.5,1.08097057]
[1734221963971,0.81,3866.0,3865.6,0.89599307]
[1734221964530,0.81,3866.0,3865.7,1.34416833]
[1734221964736,0.81,3866.0,3865.5,1.08097057]
[1734221964970,0.81,3866.0,3865.6,0.89611209]
[1734221965167,0.81,3866.0,3865.7,1.34416814]
[1734221965371,0.81,3866.0,3865.5,1.08097057]
[1734221965668,0.81,3866.0,3865.6,0.89625275]
[1734221965967,0.81,3866.0,3865.7,2.24063187]
[1734221966147,0.81,3866.0,3865.8,0.89625275]
[1734221966345,0.81,3866.0,3865.5,1.08097057]
[1734221966657,0.81,3866.0,3865.6,3.32158988]
[1734221966845,0.81,3866.0,3865.7,2.24061931]
[1734221967044,0.81,3866.0,3865.8,0.89624772]
[1734221967274,0.81,3866.0,3865.6,1.08097057]
[1734221967439,0.81,3866.0,3865.7,0.89637092]
[1734221967640,0.81,3866.0,3865.8,0.89637092]
[1734221968437,0.81,3866.0,3865.5,1.08097057]
[1734221968638,0.81,3866.0,3865.6,2.24131975]
[1734221968948,0.81,3866.0,3865.7,2.24131975]
[1734221969176,0.81,3866.0,3865.8,0.8965279]
[1734221969401,0.81,3866.0,3865.5,1.08097057]
[1734221969559,0.81,3866.0,3865.6,3.32237643]
[1734221969763,0.94387175,3866.0,3865.7,2.24140586]
[1734221970074,0.94387175,3866.0,3865.8,0.89660892]
[1734221970370,0.94387175,3866.0,3865.5,1.08097057]
[1734221970536,0.94387175,3866.0,3865.6,2.24151338]
[1734221970733,0.94387175,3866.0,3865.7,2.24151338]
[1734221971101,0.7514,3865.9,3865.5,1.08097057]
[1734221971235,0.7514,3865.9,3864.6,3.8227029]
[1734221971236,0.7514,3865.6,3864.8,1.08097057]
[1734221971562,0.7514,3865.3,3864.2,1.08097057]
[1734221971758,0.7514,3865.3,3864.0,2.77649798]
[1734221971759,0.7514,3865.1,3864.3,2.24074775]
[1734221971961,0.7514,3865.1,3864.1,1.08097057]
[1734221972177,0.7514,3865.1,3864.2,0.89632778]
[1734221972363,0.7514,3865.1,3864.3,2.24081648]
[1734221972678,0.7514,3865.0,3864.0,2.23601269]
[1734221972969,0.7514,3865.0,3864.1,2.23949862]
[1734221973538,0.7514,3865.0,3864.0,1.15504212]
[1734221973770,0.7514,3865.0,3864.1,0.89537989]
[1734221974448,0.7514,3865.0,3864.0,4.15504212]
[1734221974859,0.50714537,3864.9,3864.1,0.89503067]
[1734221975077,0.50714537,3864.9,3864.0,4.15504212]
[1734221975456,0.50714537,3864.9,3863.8,1.65067057]
[1734221975457,0.7514,3864.8,3863.8,0.5697]
[1734221975639,0.7514,3864.8,3863.9,5.23681965]
[1734221975844,0.7514,3864.7,3863.7,2.23601269]
[1734221976045,0.7514,3864.7,3863.8,5.23682726]
[1734221976354,0.7514,3864.7,3863.9,3.8947309]
[1734221976568,0.7514,3864.7,3863.6,3.0]
[1734221976778,0.7514,3864.7,3863.7,5.23613488]
[1734221976963,0.38458354,3864.8,3863.6,3.0]
[1734221976964,0.7514,3864.5,3863.6,3.0]
[1734221977171,0.7514,3864.5,3863.7,0.89447916]
[1734221977545,0.7514,3864.5,3863.4,1.08097057]
[1734221977740,0.7514,3864.5,3863.1,0.32929778]
[1734221977741,0.7514,3864.4,3863.1,0.32929778]
[1734221978482,0.7514,3864.4,3863.5,2.58831]
[1734221980145,0.52187005,3864.3,3863.5,2.58831]
[1734221982260,0.7514,3864.4,3863.5,1.58634733]
[1734221982463,0.7514,3864.4,3863.6,2.58825]
[1734221982671,0.7514,3864.4,3864.0,2.58797]
[1734221983364,0.7514,3864.4,3863.7,2.58815]
[1734221983586,0.7514,3864.4,3863.8,2.58811]
[1734221989284,0.7514,3864.4,3863.9,2.58804]
[1734221989485,0.7514,3864.4,3863.5,1.15504212]
[1734221989687,0.7514,3864.4,3863.9,1.15504212]
[1734221989892,0.7523,3865.5,3864.0,2.58799]
[1734221990095,0.13393975,3864.9,3863.9,3.74309212]
[1734221990254,0.7523,3864.8,3864.3,2.58774]
[1734221995812,0.89216784,3864.8,3863.8,3.0]
[1734221995975,0.89216784,3864.8,3863.7,2.58814]
[1734221996172,0.89216784,3864.8,3863.2,3.1582]
[1734221996173,0.7523,3864.6,3863.4,2.58834]
[1734221996985,0.7523,3864.6,3863.2,1.72474212]
[1734221997209,0.7523,3864.4,3863.5,2.58831]
[1734221997588,0.7523,3864.3,3863.1,0.32929778]
[1734221997790,0.204721,3864.5,3863.1,0.32929778]
[1734221997791,0.7523,3864.0,3863.1,0.32929778]
[1734221997974,1.15504212,3864.1,3863.1,0.32929778]
[1734221997975,0.7523,3863.5,3863.1,0.32929778]
[1734222000681,0.52384032,3863.6,3863.1,0.32929778]
[1734222000682,1.90734212,3863.2,3863.1,0.32929778]
[1734222001016,0.7523,3863.1,3861.5,1.15504212]
[1734222001203,0.7523,3863.1,3861.1,2.58992]
[1734222001204,0.7523,3863.0,3861.7,2.58951]
[1734222001713,0.7523,3863.0,3861.3,2.35195784]
[1734222001933,0.7523,3863.0,3861.8,2.58943]
[1734222002239,0.7523,3863.0,3861.9,0.55]
[1734222003418,1.26191115,3863.0,3861.9,0.55]
[1734222003589,1.26191115,3863.0,3861.9,3.453313]
[1734222004685,1.26191115,3863.0,3862.3,2.58911]
[1734222004686,0.7523,3863.0,3862.3,2.58911]
[1734222006121,0.7523,3863.0,3862.4,2.58904]
[1734222006816,0.7523,3863.0,3862.7,2.58885]
[1734222008220,2.58803,3864.0,3861.9,3.863943]
[1734222008221,0.819,3864.2,3862.8,2.58877]
[1734222008426,0.819,3863.5,3862.8,2.58877]
[1734222012546,0.819,3863.5,3862.5,0.5697]
[1734222012547,0.819,3863.5,3862.6,3.13892]
[1734222012698,0.819,3863.5,3862.8,2.58875]
[1734222012892,0.819,3863.5,3862.9,2.5887]
[1734222013458,0.819,3863.5,3862.6,0.55]
[1734222013459,0.819,3863.5,3863.1,2.58852]
[1734222013746,0.819,3863.5,3863.2,2.58851]
[1734222015542,0.819,3863.5,3863.1,0.258852]
[1734222015543,0.819,3863.5,3863.3,2.58842]
[1734222015781,0.819,3864.0,3863.3,2.58842]
[1734222017150,0.81588437,3864.0,3863.3,2.58842]
[1734222020429,0.81588437,3864.0,3863.0,2.5886]
[1734222020773,0.81588437,3864.0,3863.1,3.0]
[1734222021493,0.81588437,3864.0,3863.1,0.5728]
[1734222021691,0.81588437,3864.0,3863.3,2.58844]
[1734222022097,0.81588437,3864.0,3863.1,3.0]
[1734222023333,0.81588437,3864.0,3863.1,2.58858]
[1734222023468,0.81588437,3864.0,3863.1,3.07543868]
[1734222027317,0.81588437,3864.0,3863.1,0.48685868]
[1734222027512,0.81588437,3864.0,3863.4,2.58836]
[1734222029432,0.81588437,3864.0,3863.2,0.55]
[1734222029433,0.81588437,3864.0,3863.5,2.58829]
[1734222029656,0.81588437,3864.0,3863.6,2.58825]
[1734222029984,0.13379408,3864.1,3863.7,2.58817]
[1734222033096,0.13379408,3864.1,3863.4,3.74554676]
[1734222033393,0.8251,3864.0,3863.3,3.0]
[1734222034184,0.8251,3864.0,3863.1,0.55]
[1734222034381,0.8251,3864.0,3863.5,3.0]
[1734222034891,0.8251,3864.0,3863.5,2.58828]
[1734222036094,0.8251,3864.0,3863.3,1.15720676]
[1734222036095,0.13379408,3864.1,3863.4,0.5728]
[1734222036290,0.8251,3864.3,3863.4,0.5728]
[1734222036291,0.8251,3864.3,3863.8,2.58806]
[1734222037307,0.8251,3864.3,3863.6,1.15720676]
[1734222037308,0.8251,3864.3,3863.9,2.58805]
[1734222038104,0.8251,3864.3,3863.6,1.15720676]
[1734222038105,0.8251,3864.3,3863.7,0.55]
[1734222038410,0.8251,3864.3,3863.8,2.58809]
[1734222038621,0.95911376,3864.6,3864.1,2.58789]
[1734222038768,0.95911376,3864.6,3864.1,2.61376646]
[1734222038961,0.95911376,3864.6,3864.1,2.58789]
[1734222041711,0.95911376,3864.6,3864.0,0.5728]
[1734222042217,0.95911376,3864.6,3863.9,0.55]
[1734222044276,0.95911376,3864.6,3864.0,3.07893227]
[1734222044479,0.95911376,3864.6,3863.9,0.55]
[1734222044688,0.95911376,3864.6,3863.8,0.55]
[1734222044892,0.95911376,3864.6,3863.9,3.0]
[1734222048703,0.95911376,3864.6,3863.9,5.58804]
[1734222053015,0.95911376,3864.6,3863.8,0.55]
[1734222053323,0.95911376,3864.6,3864.0,0.55]
[1734222053701,0.95911376,3864.6,3864.2,2.58783]
[1734222054026,0.95911376,3864.6,3864.3,0.55]
[1734222059993,0.95911376,3864.6,3864.0,0.55]
[1734222060196,0.95911376,3864.6,3864.0,3.55]
[1734222061431,0.95911376,3864.6,3864.0,0.55]
[1734222061762,0.95911376,3864.6,3864.2,0.55]
[1734222062205,0.95911376,3864.6,3864.0,0.55]
[1734222062404,0.95911376,3864.6,3864.0,3.55]
[1734222066585,0.95911376,3864.6,3864.1,2.58791]
[1734222066732,0.95911376,3864.6,3864.2,0.55]
[1734222067950,0.7521,3864.5,3863.6,1.08097057]
[1734222068269,0.7521,3864.5,3863.2,4.75040114]
[1734222068270,1.62068201,3864.4,3863.2,2.58846]
[1734222068433,1.15720676,3864.5,3863.2,2.58846]
[1734222068434,0.7521,3864.2,3863.2,2.58846]
[1734222069035,0.25189159,3864.4,3863.2,2.58846]
[1734222069036,0.7521,3864.0,3863.2,2.58846]
[1734222069237,0.7521,3864.0,3863.3,3.0]
[1734222070074,0.7521,3864.0,3863.2,3.0]
[1734222070254,0.7521,3864.0,3863.0,4.08097057]
[1734222070440,0.7521,3864.0,3862.9,4.08097057]
[1734222071854,0.7521,3863.6,3862.9,4.08097057]
[1734222072570,0.7521,3863.6,3862.9,3.0]
[1734222072975,0.7521,3863.6,3862.9,4.08097057]
[1734222073552,0.7521,3863.6,3862.9,3.0]
[1734222074382,0.7521,3863.6,3862.9,4.08097057]
[1734222074545,0.7521,3863.6,3862.9,3.0]
[1734222076788,0.7521,3863.6,3862.8,4.82695733]
[1734222076789,0.7521,3863.6,3862.8,2.23817733]
[1734222077086,0.7521,3863.6,3862.8,4.15720676]
[1734222078300,0.7521,3863.6,3862.7,3.66981057]
[1734222078301,0.7521,3863.6,3862.7,1.08097057]
[1734222078523,1.90930676,3863.6,3862.4,1.08097057]
[1734222078815,2.77781834,3863.6,3862.1,2.23817733]
[1734222079019,5.1976931,3863.6,3862.1,2.23817733]
[1734222079573,5.1977602,3863.6,3862.1,4.15720676]
[1734222080584,3.8949269,3863.6,3862.1,4.15720676]
[1734222081679,3.02637137,3863.6,3862.1,4.15720676]
[1734222081875,3.89419816,3863.6,3861.9,0.5728]
[1734222082099,3.89419816,3863.6,3861.9,4.73000676]
[1734222082704,3.02637137,3863.6,3861.9,4.73000676]
[1734222082919,3.8939377,3863.6,3861.9,4.73000676]
[1734222083678,3.02637137,3863.6,3861.9,4.73000676]
[1734222084406,3.02637137,3863.6,3861.9,1.73000676]
[1734222084613,3.02637137,3863.6,3862.2,3.0]
[1734222085625,3.02637137,3863.6,3861.9,1.73000676]
[1734222085626,3.02637137,3863.6,3861.9,4.73000676]
[1734222086333,3.02637137,3863.6,3862.0,3.0]
[1734222087696,3.02637137,3863.6,3862.0,5.58929]
[1734222089419,3.16144441,3863.6,3862.0,5.58929]
[1734222090036,3.16144441,3863.6,3861.9,0.5728]
[1734222090219,3.16144441,3863.6,3861.9,3.5728]
[1734222090415,4.02774676,3863.6,3861.9,3.5728]
[1734222091647,3.16144441,3863.6,3861.9,3.5728]
[1734222092159,3.16144441,3863.6,3862.1,2.58924]
[1734222092382,2.00423765,3863.6,3862.6,0.5728]
[1734222092637,2.0443798,3863.6,3862.6,0.5728]
[1734222099870,0.13507304,3863.6,3863.2,0.5728]
[1734222102428,0.88847304,3863.6,3862.8,0.5728]
[1734222104076,0.13507304,3863.6,3862.8,0.5728]
[1734222108667,0.96227304,3863.6,3862.5,0.5728]
[1734222108867,3.76098847,3863.6,3862.5,0.5728]
[1734222109068,4.84045579,3863.6,3862.5,0.5728]
[1734222109443,3.76098847,3863.6,3862.5,0.5728]
[1734222109690,4.84045579,3863.6,3862.5,0.5728]
[1734222110540,3.76150218,3863.6,3862.5,0.5728]
[1734222112677,5.38070317,3863.6,3862.5,0.5728]
[1734222112839,3.76150218,3863.6,3862.5,0.5728]
[1734222113040,5.49846563,3863.6,3862.5,0.5728]
[1734222113643,7.65740028,3863.6,3862.5,0.5728]
[1734222114284,5.49846563,3863.6,3862.5,0.5728]
[1734222114583,7.65740028,3863.6,3862.5,0.5728]
[1734222114883,7.66110578,3863.6,3862.5,0.5728]
[1734222116948,5.50217113,3863.6,3862.5,0.5728]
[1734222117149,7.66110578,3863.6,3862.5,0.5728]
[1734222119989,5.50217113,3863.6,3862.5,0.5728]
[1734222122054,8.20269024,3863.6,3862.5,0.5728]
[1734222122391,5.50217113,3863.6,3862.5,0.5728]
[1734222122692,6.83673105,3863.6,3863.0,0.5728]
[1734222122991,4.04446747,3863.6,3863.0,0.5728]
[1734222123186,4.04446747,3863.6,3863.5,1.1978]
[1734222123187,2.30750402,3863.6,3863.5,1.1978]
[1734222123752,1.00404543,3863.6,3863.5,1.1978]
[1734222124006,0.13507304,3863.6,3863.5,1.1978]
[1734222125676,1.0809736,3864.3,3863.6,0.5728]
[1734222125889,1.0809736,3864.3,3863.8,0.5728]
[1734222125890,0.13491438,3864.1,3863.8,0.5728]
[1734222128685,0.51270106,3864.3,3863.8,0.5728]
[1734222129359,0.13492507,3864.2,3863.8,0.5728]
[1734222136497,0.13492507,3864.2,3864.0,0.5728]
[1734222138004,0.13492507,3864.2,3864.1,1.1228]
[1734222138187,0.13492507,3864.2,3864.1,1.54889]
[1734222138783,0.52224075,3864.6,3864.1,1.54889]
[1734222138996,0.52224075,3864.6,3864.2,0.55]
[1734222142386,0.52224075,3864.6,3864.1,0.5728]
[1734222144793,0.13489228,3864.7,3864.2,0.55]
[1734222145117,0.13489228,3864.7,3864.4,0.5728]
[1734222145680,0.8108,3865.8,3864.7,1.1228]
[1734222145915,0.51635832,3865.7,3865.0,0.5728]
[1734222146127,0.65123853,3865.7,3865.0,0.5728]
[1734222147424,0.8108,3865.6,3865.0,0.5728]
[1734222151390,0.8108,3865.6,3864.6,1.15720676]
[1734222151589,0.8108,3865.6,3864.8,0.5728]
[1734222153737,3.39776,3865.6,3864.8,0.5728]
[1734222155830,2.58699,3865.5,3864.8,0.5728]
[1734222155997,0.8108,3865.6,3864.8,0.5728]
[1734222156192,0.8108,3865.6,3864.5,0.5728]
[1734222156193,1.96800676,3865.6,3864.5,0.5728]
[1734222156398,0.5097742,3865.0,3864.5,0.5728]
[1734222156634,0.5097742,3865.0,3863.5,0.625]
[1734222156635,2.44958096,3865.0,3864.1,0.5728]
[1734222156805,2.58748,3864.8,3864.1,0.5728]
[1734222161343,2.44958096,3865.0,3864.1,0.5728]
[1734222161641,2.44958096,3865.0,3863.6,1.15720676]
[1734222161642,2.58768,3864.5,3863.6,0.5728]
[1734222163020,1.93980676,3865.0,3863.6,1.73000676]
[1734222163221,0.7826,3865.0,3863.8,0.5728]
[1734222163520,3.0,3865.2,3863.8,0.5728]
[1734222163521,0.52450111,3864.4,3863.9,0.5728]
[1734222164143,2.5873,3865.1,3863.9,0.5728]
[1734222164314,0.45271068,3865.0,3863.9,0.5728]
[1734222164508,2.5873,3865.1,3863.9,0.5728]
[1734222164714,0.7826,3865.2,3863.9,0.5728]
[1734222164934,0.7826,3865.2,3864.0,0.5728]
[1734222165644,0.7826,3865.2,3864.1,0.55]
[1734222165846,0.52020549,3864.7,3864.2,0.5728]
[1734222166160,0.52020549,3864.7,3864.2,0.943885]
[1734222166376,0.1350117,3864.6,3864.2,0.943885]
[1734222166959,0.1350117,3864.6,3864.3,0.5728]
[1734222168812,0.1350117,3864.6,3864.2,2.958935]
[1734222168813,0.1350117,3864.6,3864.4,3.13769]
[1734222169034,0.1350117,3864.6,3864.5,1.1228]
[1734222169226,0.1350117,3864.6,3864.5,1.53354494]
[1734222169757,0.13499252,3865.0,3864.7,0.5728]
[1734222169912,0.13499252,3865.0,3864.8,1.1228]
[1734222170533,0.13499252,3865.0,3864.9,0.5728]
[1734222170737,0.13499252,3865.0,3864.9,1.1228]
[1734222171055,0.13499252,3865.0,3864.9,1.493823]
[1734222172048,1.0809736,3866.1,3865.2,0.55]
[1734222172252,0.1349792,3865.4,3865.2,0.55]
[1734222172555,1.0809736,3866.2,3865.2,0.55]
[1734222172752,1.0809736,3866.2,3865.2,0.9581053]
[1734222172753,0.13497676,3865.5,3865.2,0.9581053]
[1734222172916,1.0809736,3866.2,3865.2,0.9581053]
[1734222173116,0.13497676,3865.5,3865.3,0.5728]
[1734222173543,1.0809736,3866.2,3865.3,0.5728]
[1734222173738,0.66494097,3865.5,3865.3,0.5728]
[1734222173938,0.52996439,3865.5,3865.3,0.5728]
[1734222174219,0.6649435,3865.5,3865.3,0.5728]
[1734222177934,0.13497911,3865.5,3865.3,0.5728]
[1734222178119,0.13497911,3865.5,3865.4,0.371003]
[1734222182123,0.13497911,3865.5,3865.4,0.921003]
[1734222184094,0.13497911,3865.5,3865.4,0.371003]
[1734222184362,0.13497911,3865.5,3865.0,2.58729]
[1734222184363,0.13497911,3865.5,3865.0,0.5728]
[1734222184962,0.13497911,3865.5,3864.6,2.58755]
[1734222185162,0.13497911,3865.5,3864.6,0.5728]
[1734222188350,1.97182183,3865.4,3864.2,1.1228]
[1734222188680,0.50540208,3864.7,3864.2,1.1228]
[1734222194593,0.13500393,3864.6,3864.2,1.1228]
[1734222195825,0.13500393,3864.6,3864.2,2.27912183]
[1734222196027,0.13500393,3864.6,3864.4,0.55]
[1734222202025,0.13500393,3864.6,3864.4,2.58769]
[1734222202233,0.13500393,3864.6,3864.5,2.76580301]
[1734222202516,0.8219,3865.7,3864.7,2.58747]
[1734222202776,0.13498473,3865.1,3864.7,0.55]
[1734222202947,0.8219,3865.7,3864.9,0.55]
[1734222203144,0.13498449,3865.1,3864.9,0.55]
[1734222203564,0.8219,3865.7,3864.9,0.55]
[1734222203746,0.8219,3865.7,3864.7,0.55]
[1734222203747,0.1349867,3865.1,3864.7,0.55]
[1734222203932,0.51481808,3865.1,3864.7,0.55]
[1734222204140,0.1349867,3865.0,3864.9,0.55]
[1734222209153,5.36437143,3866.0,3864.9,0.55]
[1734222209154,1.8862736,3866.0,3865.3,0.55]
[1734222209356,0.66324096,3865.5,3865.3,0.55]
[1734222209554,0.52826772,3865.5,3865.3,0.55]
[1734222209795,0.52826772,3865.5,3865.4,0.313718]
[1734222210050,0.66323933,3865.5,3865.1,0.55]
[1734222210372,0.66323933,3865.5,3865.0,0.55]
[1734222210373,0.8053,3865.4,3865.0,0.55]
[1734222213767,0.66323933,3865.5,3865.0,0.55]
[1734222213962,0.66323933,3865.5,3865.1,3.89573634]
[1734222214162,0.66323933,3865.5,3865.1,3.0]
[1734222214399,0.66323933,3865.5,3865.2,3.91627406]
[1734222214758,0.66323933,3865.5,3865.2,3.36627406]
[1734222215307,0.66323933,3865.5,3865.3,0.55]
[1734222215776,0.66323933,3865.5,3865.3,3.13711]
[1734222216575,0.13497161,3865.5,3865.3,3.13711]
[1734222216777,0.13497161,3865.5,3865.4,1.51442141]
[1734222217897,0.13497161,3865.5,3865.4,2.67074324]
[1734222219629,0.13497161,3865.5,3865.4,5.67074324]
[1734222220642,0.13497161,3865.5,3865.4,4.51442141]
[1734222222221,0.13185671,3865.5,3865.4,3.94162141]
[1734222232084,0.13185671,3865.5,3865.4,0.94162141]
[1734222232285,0.13185671,3865.5,3865.0,1.08097057]
[1734222232286,0.94835671,3865.5,3864.8,1.65377057]
[1734222232486,0.94835671,3865.5,3864.7,2.58751]
[1734222233599,0.94835671,3865.5,3864.8,3.0]
[1734222233891,0.94835671,3865.5,3864.9,0.55]
[1734222234698,0.94835671,3865.5,3864.9,4.163751]
[1734222234892,0.94835671,3865.5,3864.9,1.163751]
[1734222235209,0.94835671,3865.5,3864.6,3.0]
[1734222235210,0.94835671,3865.5,3864.7,0.55]
[1734222237791,0.94835671,3865.5,3864.7,3.13751]
[1734222239996,0.94835671,3865.5,3864.9,0.55]
[1734222240306,0.94835671,3865.5,3864.7,3.13751]
[1734222240518,0.94835671,3865.5,3864.9,0.55]
[1734222240679,0.94835671,3865.5,3865.1,0.55]
[1734222243819,0.13185671,3865.5,3865.1,3.13725]
[1734222244042,0.13185671,3865.5,3865.3,0.55]
[1734222244185,0.13185671,3865.5,3865.4,0.40330059]
[1734222248908,0.13185671,3865.5,3865.4,1.29963845]
[1734222249121,0.13185671,3865.5,3865.4,0.40330059]
[1734222249418,0.13185671,3865.5,3865.4,1.29966307]
[1734222249620,0.13185671,3865.5,3865.4,0.40330059]
[1734222250242,0.13185671,3865.5,3865.1,0.55]
[1734222250433,0.13185671,3865.5,3865.3,0.55]
[1734222250930,0.13185671,3865.5,3865.1,0.55]
[1734222251230,0.13185671,3865.5,3865.3,0.55]
[1734222251880,0.13185671,3865.5,3865.1,0.55]
[1734222252101,0.13185671,3865.5,3865.3,0.55]
[1734222257401,0.7731,3865.4,3865.0,0.55]